[Event "Masters Tournament (MTO)"]
[Site "Biel, Switzerland"]
[Date "2026.07.23"]
[Round "10.1"]
[White "Kozak, Adam"]
[Black "Gloeckler, Christian"]
[Result "1-0"]
[TimeControl "100+30+30sec/move"]
[WhiteTitle "-"]
[BlackTitle "-"]
[WhiteFideId "753246"]
[BlackFideId "34608966"]
[WhiteElo "2531"]
[BlackElo "2506"]

1. c4 {[%clk 01:40:50]} {[%emt 00:00:09]} Nf6 {[%clk 01:40:54]} {[%emt
00:00:06]} 2. Nc3 {[%clk 01:41:14]} {[%emt 00:00:06]} e6 {[%clk 01:41:19]}
{[%emt 00:00:06]} 3. e4 {[%clk 01:41:37]} {[%emt 00:00:07]} c5 {[%clk
01:41:44]} {[%emt 00:00:05]} 4. e5 {[%clk 01:40:45]} {[%emt 00:01:22]} Ng8
{[%clk 01:42:08]} {[%emt 00:00:06]} 5. d4 {[%clk 01:40:38]} {[%emt 00:00:37]}
cxd4 {[%clk 01:42:33]} {[%emt 00:00:05]} 6. Qxd4 {[%clk 01:41:01]} {[%emt
00:00:07]} Nc6 {[%clk 01:42:56]} {[%emt 00:00:07]} 7. Qf4 {[%clk 01:41:15]}
{[%emt 00:00:15]} d6 {[%clk 01:43:21]} {[%emt 00:00:05]} 8. Nf3 {[%clk
01:41:33]} {[%emt 00:00:11]} Nh6 {[%clk 01:43:45]} {[%emt 00:00:06]} 9. Bd2
{[%clk 01:40:10]} {[%emt 00:01:54]} dxe5 {[%clk 01:44:09]} {[%emt 00:00:06]} 10.
Nxe5 {[%clk 01:40:34]} {[%emt 00:00:06]} Bd6 {[%clk 01:44:32]} {[%emt
00:00:07]} 11. Nxc6 {[%clk 01:41:00]} {[%emt 00:00:05]} Bxf4 {[%clk 01:44:55]}
{[%emt 00:00:06]} 12. Nxd8 {[%clk 01:41:25]} {[%emt 00:00:04]} Bxd2+ {[%clk
01:45:16]} {[%emt 00:00:10]} 13. Kxd2 {[%clk 01:41:52]} {[%emt 00:00:03]} Kxd8
{[%clk 01:45:34]} {[%emt 00:00:12]} 14. Rg1 {[%clk 01:42:19]} {[%emt 00:00:03]}
Bd7 {[%clk 01:37:40]} {[%emt 00:08:25]} 15. g4 {[%clk 01:42:29]} {[%emt
00:00:21]} Kc7 {[%clk 01:34:35]} {[%emt 00:03:34]} 16. Bd3 {[%clk 01:40:44]}
{[%emt 00:02:14]} Rad8 {[%clk 01:31:13]} {[%emt 00:03:53]} 17. Ke3 {[%clk
01:25:40]} {[%emt 00:15:33]} Bc6 {[%clk 01:19:43]} {[%emt 00:12:00]} 18. Rad1
{[%clk 01:17:18]} {[%emt 00:08:52]} Rhe8 {[%clk 01:15:21]} {[%emt 00:04:52]} 19.
g5 {[%clk 01:04:03]} {[%emt 00:13:45]} Ng8 {[%clk 01:12:30]} {[%emt 00:03:21]}
20. Bxh7 {[%clk 00:36:54]} {[%emt 00:27:39]} Rxd1 {[%clk 01:11:23]} {[%emt
00:01:38]} 21. Rxd1 {[%clk 00:32:41]} {[%emt 00:04:42]} Ne7 {[%clk 01:11:29]}
{[%emt 00:00:24]} 22. Be4 {[%clk 00:31:20]} {[%emt 00:01:50]} Rh8 {[%clk
01:11:20]} {[%emt 00:00:39]} 23. Bxc6 {[%clk 00:31:16]} {[%emt 00:00:35]} Kxc6
{[%clk 00:59:23]} {[%emt 00:12:27]} 24. Nb5 {[%clk 00:26:29]} {[%emt 00:05:16]}
Nf5+ {[%clk 00:54:40]} {[%emt 00:05:13]} 25. Kf3 {[%clk 00:24:47]} {[%emt
00:02:13]} Kb6 {[%clk 00:39:29]} {[%emt 00:15:40]} 26. Nd4 {[%clk 00:09:54]}
{[%emt 00:15:23]} Ne7 {[%clk 00:38:01]} {[%emt 00:01:58]} 27. Kg2 {[%clk
00:06:34]} {[%emt 00:03:50]} Ng6 {[%clk 00:25:43]} {[%emt 00:12:48]} 28. Nf3
{[%clk 00:05:45]} {[%emt 00:01:18]} e5 {[%clk 00:25:17]} {[%emt 00:00:57]} 29.
Kg3 {[%clk 00:04:19]} {[%emt 00:01:56]} Kc7 {[%clk 00:21:34]} {[%emt 00:04:13]}
30. h4 {[%clk 00:03:16]} {[%emt 00:01:33]} e4 {[%clk 00:19:29]} {[%emt
00:02:36]} 31. Nd4 {[%clk 00:03:39]} {[%emt 00:00:07]} Rxh4 {[%clk 00:19:41]}
{[%emt 00:00:17]} 32. Nb5+ {[%clk 00:03:28]} {[%emt 00:00:42]} Kb6 {[%clk
00:19:40]} {[%emt 00:00:31]} 33. b4 {[%clk 00:02:46]} {[%emt 00:01:12]} Ka6
{[%clk 00:19:04]} {[%emt 00:01:06]} 34. Rd6+ {[%clk 00:02:37]} {[%emt
00:00:39]} b6 {[%clk 00:19:27]} {[%emt 00:00:07]} 35. Rd7 {[%clk 00:02:44]}
{[%emt 00:00:23]} Rg4+ {[%clk 00:19:50]} {[%emt 00:00:07]} 36. Kh2 {[%clk
00:02:52]} {[%emt 00:00:22]} Rh4+ {[%clk 00:20:09]} {[%emt 00:00:11]} 37. Kg1
{[%clk 00:03:11]} {[%emt 00:00:10]} Rg4+ {[%clk 00:20:33]} {[%emt 00:00:07]} 38.
Kf1 {[%clk 00:03:37]} {[%emt 00:00:05]} 1-0

[Event "Masters Tournament (MTO)"]
[Site "Biel, Switzerland"]
[Date "2026.07.23"]
[Round "10.2"]
[White "Acs, Peter"]
[Black "Cao, Qingfeng"]
[Result "0-1"]
[TimeControl "100+30+30sec/move"]
[WhiteTitle "-"]
[BlackTitle "-"]
[WhiteFideId "708020"]
[BlackFideId "8627568"]
[WhiteElo "2561"]
[BlackElo "2365"]

1. e4 {[%clk 01:40:53]} {[%emt 00:00:06]} c6 {[%clk 01:40:35]} {[%emt
00:00:27]} 2. d4 {[%clk 01:41:04]} {[%emt 00:00:18]} d5 {[%clk 01:40:54]}
{[%emt 00:00:11]} 3. e5 {[%clk 01:41:20]} {[%emt 00:00:14]} Bf5 {[%clk
01:41:12]} {[%emt 00:00:11]} 4. h4 {[%clk 01:41:09]} {[%emt 00:00:42]} h5
{[%clk 01:41:29]} {[%emt 00:00:12]} 5. c4 {[%clk 01:41:21]} {[%emt 00:00:19]}
e6 {[%clk 01:41:47]} {[%emt 00:00:12]} 6. Nc3 {[%clk 01:41:43]} {[%emt
00:00:09]} Ne7 {[%clk 01:42:03]} {[%emt 00:00:13]} 7. Nge2 {[%clk 01:41:25]}
{[%emt 00:00:49]} Nd7 {[%clk 01:42:17]} {[%emt 00:00:15]} 8. Ng3 {[%clk
01:40:31]} {[%emt 00:01:24]} Bg6 {[%clk 01:42:30]} {[%emt 00:00:17]} 9. a3
{[%clk 01:30:47]} {[%emt 00:10:15]} Nf5 {[%clk 01:38:09]} {[%emt 00:04:49]} 10.
Nxf5 {[%clk 01:29:43]} {[%emt 00:01:35]} Bxf5 {[%clk 01:38:26]} {[%emt
00:00:13]} 11. cxd5 {[%clk 01:29:07]} {[%emt 00:01:07]} cxd5 {[%clk 01:37:50]}
{[%emt 00:01:05]} 12. Bd3 {[%clk 01:24:47]} {[%emt 00:04:50]} Bxd3 {[%clk
01:36:41]} {[%emt 00:01:40]} 13. Qxd3 {[%clk 01:25:11]} {[%emt 00:00:06]} Be7
{[%clk 01:36:18]} {[%emt 00:00:50]} 14. g3 {[%clk 01:19:49]} {[%emt 00:05:55]}
a6 {[%clk 01:36:00]} {[%emt 00:00:48]} 15. Kf1 {[%clk 01:13:33]} {[%emt
00:06:46]} Rc8 {[%clk 01:21:00]} {[%emt 00:15:30]} 16. Kg2 {[%clk 01:13:12]}
{[%emt 00:00:51]} Nb8 {[%clk 01:21:04]} {[%emt 00:00:27]} 17. Ne2 {[%clk
01:03:40]} {[%emt 00:10:01]} Nc6 {[%clk 01:09:32]} {[%emt 00:12:02]} 18. Bd2
{[%clk 01:03:13]} {[%emt 00:00:58]} g6 {[%clk 01:06:32]} {[%emt 00:03:30]} 19.
Rac1 {[%clk 00:57:58]} {[%emt 00:05:45]} Qb6 {[%clk 00:54:22]} {[%emt
00:12:39]} 20. b4 {[%clk 00:55:01]} {[%emt 00:03:28]} Kd7 {[%clk 00:53:10]}
{[%emt 00:01:42]} 21. Qf3 {[%clk 00:50:50]} {[%emt 00:04:41]} Rcf8 {[%clk
00:42:04]} {[%emt 00:11:36]} 22. Bg5 {[%clk 00:45:45]} {[%emt 00:05:35]} Bxg5
{[%clk 00:38:11]} {[%emt 00:04:23]} 23. hxg5 {[%clk 00:46:08]} {[%emt
00:00:07]} Ne7 {[%clk 00:38:13]} {[%emt 00:00:28]} 24. Qf6 {[%clk 00:42:14]}
{[%emt 00:04:24]} Rc8 {[%clk 00:29:33]} {[%emt 00:09:11]} 25. Rxc8 {[%clk
00:32:56]} {[%emt 00:09:48]} Re8 {[%emt 00:00:03]} 26. Rd8+ Rxd8 {[%clk
00:29:58]} 27. Qxf7 {[%clk 00:33:06]} {[%emt 00:00:20]} Rc8 {[%clk 00:27:49]}
28. Rf1 {[%emt 00:05:22]} Rc2 29. Re1 {[%clk 00:30:53]} h4 {[%clk 00:27:40]}
{[%emt 00:00:40]} 30. gxh4 {[%clk 00:26:28]} {[%emt 00:04:55]} Rxe2 {[%clk
00:27:54]} {[%emt 00:00:16]} 31. Rxe2 {[%clk 00:26:38]} {[%emt 00:00:20]} Qxd4
{[%clk 00:28:20]} {[%emt 00:00:04]} 32. Qf3 {[%clk 00:16:29]} {[%emt 00:10:40]}
Nf5 {[%clk 00:26:59]} {[%emt 00:01:51]} 33. Qh3 {[%clk 00:16:40]} {[%emt
00:00:18]} Qf4 {[%clk 00:26:39]} {[%emt 00:00:51]} 34. b5 {[%clk 00:07:39]}
{[%emt 00:09:31]} Nxh4+ {[%clk 00:23:44]} {[%emt 00:03:25]} 35. Kf1 {[%clk
00:07:55]} {[%emt 00:00:13]} Qc1+ {[%clk 00:22:23]} {[%emt 00:01:51]} 36. Re1
{[%clk 00:08:20]} {[%emt 00:00:06]} Qc4+ {[%clk 00:22:38]} {[%emt 00:00:15]} 37.
Kg1 {[%clk 00:07:40]} {[%emt 00:01:10]} axb5 {[%clk 00:22:25]} {[%emt
00:00:43]} 38. Re3 {[%clk 00:07:29]} {[%emt 00:00:41]} d4 {[%clk 00:18:47]}
{[%emt 00:04:08]} 39. Rd3 {[%clk 00:06:13]} {[%emt 00:01:44]} Nf5 {[%clk
00:18:48]} {[%emt 00:00:30]} 40. Rd1 {[%clk 00:03:19]} {[%emt 00:03:25]} Kc6
{[%clk 00:09:52]} {[%emt 00:09:26]} 41. Qf3+ {[%clk 00:01:16]} {[%emt
00:02:33]} Kb6 {[%clk 00:10:15]} {[%emt 00:00:08]} 42. Rb1 {[%clk 00:00:44]}
{[%emt 00:01:02]} Ka6 {[%clk 00:07:24]} {[%emt 00:03:20]} 43. Kh2 {[%clk
00:20:42]} {[%emt 00:10:31]} Qc2 {[%clk 00:29:57]} {[%emt 00:07:58]} 44. Rb4
{[%clk 00:19:12]} {[%emt 00:02:01]} Qd2 {[%clk 00:29:13]} {[%emt 00:01:13]} 45.
Rb1 {[%clk 00:16:42]} {[%emt 00:03:00]} Qc2 {[%clk 00:21:07]} {[%emt 00:08:35]}
46. Rb3 {[%clk 00:16:06]} {[%emt 00:01:06]} Qc7 {[%clk 00:20:32]} {[%emt
00:01:05]} 47. Qe2 {[%clk 00:14:01]} {[%emt 00:02:35]} Qc4 {[%clk 00:19:51]}
{[%emt 00:01:11]} 48. Rd3 {[%clk 00:13:01]} {[%emt 00:01:31]} Ka7 {[%clk
00:17:18]} {[%emt 00:03:03]} 49. Rd2 {[%clk 00:12:28]} {[%emt 00:01:03]} Qc1
{[%clk 00:15:14]} {[%emt 00:02:33]} 50. f4 {[%clk 00:07:40]} {[%emt 00:05:18]}
Kb8 {[%clk 00:13:16]} {[%emt 00:02:28]} 51. Qd3 {[%clk 00:07:32]} {[%emt
00:00:38]} Ne3 {[%clk 00:13:09]} {[%emt 00:00:38]} 52. Re2 {[%clk 00:07:02]}
{[%emt 00:01:00]} Nf5 {[%clk 00:09:06]} {[%emt 00:04:33]} 53. Rf2 {[%clk
00:07:01]} {[%emt 00:00:31]} Qc4 {[%clk 00:08:10]} {[%emt 00:01:27]} 54. Rd2
{[%clk 00:06:13]} {[%emt 00:01:18]} Qc1 {[%clk 00:07:11]} {[%emt 00:01:29]} 55.
Rf2 {[%clk 00:06:01]} {[%emt 00:00:41]} Qe1 {[%clk 00:07:30]} {[%emt 00:00:11]}
56. Qd2 {[%clk 00:05:48]} {[%emt 00:00:43]} Qe4 {[%clk 00:07:54]} {[%emt
00:00:06]} 57. Qa5 {[%clk 00:05:30]} {[%emt 00:00:48]} Qd5 {[%clk 00:06:40]}
{[%emt 00:01:44]} 58. Rc2 {[%clk 00:04:21]} {[%emt 00:01:37]} Qd7 {[%clk
00:06:38]} {[%emt 00:00:34]} 59. Qb4 {[%clk 00:03:51]} {[%emt 00:01:01]} Qh7+
{[%clk 00:05:31]} {[%emt 00:01:37]} 60. Kg1 {[%clk 00:04:11]} {[%emt 00:00:09]}
Qh3 {[%clk 00:05:29]} {[%emt 00:00:33]} 61. Qf8+ {[%clk 00:01:16]} {[%emt
00:03:25]} Ka7 {[%clk 00:05:58]} {[%emt 00:00:01]} 62. Qc5+ {[%clk 00:01:04]}
{[%emt 00:00:42]} Ka6 {[%clk 00:06:27]} {[%emt 00:00:02]} 63. Qc8 {[%clk
00:01:13]} {[%emt 00:00:21]} Qe3+ {[%clk 00:02:36]} {[%emt 00:04:21]} 64. Rf2
{[%clk 00:01:17]} {[%emt 00:00:25]} d3 {[%clk 00:00:44]} {[%emt 00:02:22]} 65.
Qa8+ {[%clk 00:01:16]} {[%emt 00:00:31]} Kb6 {[%clk 00:01:13]} {[%emt
00:00:02]} 66. Qd8+ {[%clk 00:01:36]} {[%emt 00:00:09]} Kc5 {[%clk 00:01:17]}
{[%emt 00:00:27]} 67. Qc7+ {[%clk 00:01:41]} {[%emt 00:00:24]} Kd4 {[%clk
00:01:30]} {[%emt 00:00:17]} 68. Qb6+ {[%clk 00:00:47]} {[%emt 00:01:24]} Kc4
{[%clk 00:01:35]} {[%emt 00:00:24]} 69. Qc7+ {[%clk 00:00:42]} {[%emt
00:00:36]} Kb3 {[%clk 00:01:37]} {[%emt 00:00:27]} 70. Qxb7 {[%clk 00:00:41]}
{[%emt 00:00:32]} Nd4 {[%clk 00:02:02]} {[%emt 00:00:05]} 71. Qe7 {[%clk
00:00:43]} {[%emt 00:00:29]} Ne2+ {[%clk 00:02:16]} {[%emt 00:00:16]} 72. Kf1
{[%clk 00:00:35]} {[%emt 00:00:37]} Qc1+ {[%clk 00:02:27]} {[%emt 00:00:19]} 73.
Kg2 {[%clk 00:01:02]} {[%emt 00:00:04]} Qg1+ {[%clk 00:02:53]} {[%emt
00:00:04]} 74. Kf3 {[%clk 00:00:59]} {[%emt 00:00:33]} Qg3 {[%clk 00:03:18]}
{[%emt 00:00:05]} 75. Ke4 {[%clk 00:01:26]} {[%emt 00:00:03]} Nc3+ {[%clk
00:03:45]} {[%emt 00:00:04]} 76. Kd4 {[%clk 00:01:47]} {[%emt 00:00:09]} Qxf2+
{[%clk 00:04:11]} {[%emt 00:00:04]} 77. Kxd3 {[%clk 00:02:13]} {[%emt
00:00:04]} Qe2 {[%clk 00:04:37]} {[%emt 00:00:04]} 78. Kd4 {[%clk 00:02:39]}
{[%emt 00:00:04]} Qc4+ {[%clk 00:05:04]} {[%emt 00:00:03]} 79. Ke3 {[%clk
00:03:04]} {[%emt 00:00:05]} Nd5 {[%clk 00:05:31]} {[%emt 00:00:03]} 0-1

[Event "Masters Tournament (MTO)"]
[Site "Biel, Switzerland"]
[Date "2026.07.23"]
[Round "10.3"]
[White "Aronyak, Ghosh"]
[Black "Ghosh, Diptayan"]
[Result "1/2-1/2"]
[TimeControl "100+30+30sec/move"]
[WhiteTitle "-"]
[BlackTitle "-"]
[WhiteFideId "25072846"]
[BlackFideId "5045207"]
[WhiteElo "2549"]
[BlackElo "2554"]

1. Nf3 {[%clk 01:40:09]} {[%emt 00:00:50]} d5 {[%clk 01:35:54]} {[%emt
00:05:07]} 2. g3 {[%clk 01:39:40]} {[%emt 00:00:58]} Nf6 {[%clk 01:36:10]}
{[%emt 00:00:15]} 3. Bg2 {[%clk 01:40:05]} {[%emt 00:00:04]} e6 {[%clk
01:36:30]} {[%emt 00:00:10]} 4. O-O {[%clk 01:40:30]} {[%emt 00:00:05]} Be7
{[%clk 01:36:48]} {[%emt 00:00:12]} 5. d4 {[%clk 01:32:56]} {[%emt 00:08:04]}
O-O {[%clk 01:35:30]} {[%emt 00:01:49]} 6. c4 {[%clk 01:33:15]} {[%emt
00:00:11]} a5 {[%clk 01:31:02]} {[%emt 00:04:58]} 7. b3 {[%clk 01:27:44]}
{[%emt 00:06:01]} a4 {[%clk 01:27:04]} {[%emt 00:04:28]} 8. Ba3 {[%clk
01:28:03]} {[%emt 00:00:11]} axb3 {[%clk 01:24:38]} {[%emt 00:02:56]} 9. axb3
{[%clk 01:28:25]} {[%emt 00:00:08]} c5 {[%clk 01:23:02]} {[%emt 00:02:06]} 10.
Nc3 {[%clk 01:14:14]} {[%emt 00:14:41]} cxd4 {[%clk 01:17:06]} {[%emt
00:06:26]} 11. Bxe7 {[%clk 01:14:31]} {[%emt 00:00:13]} Rxa1 {[%clk 01:17:32]}
{[%emt 00:00:04]} 12. Bxd8 {[%clk 01:13:04]} {[%emt 00:01:56]} Rxd1 {[%clk
01:17:49]} {[%emt 00:00:13]} 13. Rxd1 {[%clk 01:13:25]} {[%emt 00:00:10]} Rxd8
{[%clk 01:18:15]} {[%emt 00:00:04]} 14. Nxd4 {[%clk 01:12:55]} {[%emt
00:01:00]} dxc4 {[%clk 01:17:51]} {[%emt 00:00:54]} 15. bxc4 {[%clk 01:13:06]}
{[%emt 00:00:19]} 1/2-1/2

[Event "Masters Tournament (MTO)"]
[Site "Biel, Switzerland"]
[Date "2026.07.23"]
[Round "10.4"]
[White "Shukhman, Anna"]
[Black "Gopal, G.N."]
[Result "1/2-1/2"]
[TimeControl "100+30+30sec/move"]
[WhiteTitle "-"]
[BlackTitle "-"]
[WhiteFideId "54180058"]
[BlackFideId "5015693"]
[WhiteElo "2443"]
[BlackElo "2529"]

1. e4 {[%clk 01:40:58]} {[%emt 00:00:01]} c5 {[%clk 01:40:56]} {[%emt
00:00:06]} 2. Nf3 {[%clk 01:41:26]} d6 {[%clk 01:41:23]} {[%emt 00:00:03]} 3.
d4 {[%clk 01:41:55]} {[%emt 00:00:03]} cxd4 {[%clk 01:41:48]} {[%emt 00:00:03]}
4. Nxd4 {[%clk 01:42:23]} {[%emt 00:00:01]} Nf6 {[%clk 01:42:13]} {[%emt
00:00:05]} 5. Nc3 {[%clk 01:42:49]} {[%emt 00:00:04]} a6 {[%clk 01:42:39]}
{[%emt 00:00:04]} 6. Be2 {[%clk 01:43:16]} {[%emt 00:00:02]} e5 {[%clk
01:43:03]} {[%emt 00:00:05]} 7. Nb3 {[%clk 01:43:44]} {[%emt 00:00:03]} Be7
{[%clk 01:42:14]} {[%emt 00:01:19]} 8. Be3 {[%clk 01:44:09]} {[%emt 00:00:04]}
Be6 {[%clk 01:40:38]} {[%emt 00:02:06]} 9. Nd5 {[%clk 01:44:36]} {[%emt
00:00:04]} Nbd7 {[%clk 01:39:54]} {[%emt 00:01:14]} 10. Qd3 {[%clk 01:45:01]}
{[%emt 00:00:04]} O-O {[%clk 01:36:37]} {[%emt 00:03:47]} 11. O-O-O {[%clk
01:41:36]} {[%emt 00:03:55]} Bxd5 {[%clk 01:29:17]} {[%emt 00:07:51]} 12. exd5
{[%clk 01:42:02]} {[%emt 00:00:04]} Nb6 {[%clk 01:28:35]} {[%emt 00:01:12]} 13.
Bf3 {[%clk 01:42:27]} {[%emt 00:00:04]} Nfd7 {[%clk 01:28:26]} {[%emt
00:00:38]} 14. Be4 {[%clk 01:42:24]} {[%emt 00:00:33]} Nf6 {[%clk 01:25:34]}
{[%emt 00:03:23]} 15. Kb1 {[%clk 01:27:58]} {[%emt 00:14:56]} Nxe4 {[%clk
01:19:07]} {[%emt 00:06:57]} 16. Qxe4 {[%clk 01:28:24]} {[%emt 00:00:04]} Qc7
{[%clk 01:11:51]} {[%emt 00:07:46]} 17. g4 {[%clk 01:24:30]} {[%emt 00:04:23]}
Nc4 {[%clk 01:11:11]} {[%emt 00:01:10]} 18. Bc1 {[%clk 01:23:42]} {[%emt
00:01:17]} b5 {[%clk 01:08:02]} {[%emt 00:03:40]} 19. Rd3 {[%clk 01:21:19]}
{[%emt 00:02:52]} Qd7 {[%clk 01:04:18]} {[%emt 00:04:15]} 20. Rf3 {[%clk
01:19:47]} {[%emt 00:02:02]} Rac8 {[%clk 00:59:46]} {[%emt 00:05:03]} 21. Rg1
{[%clk 01:00:32]} {[%emt 00:19:44]} a5 {[%clk 00:53:50]} {[%emt 00:06:26]} 22.
Rgg3 {[%clk 00:52:48]} {[%emt 00:08:14]} a4 {[%clk 00:34:28]} {[%emt 00:19:53]}
23. Rh3 {[%clk 00:43:46]} {[%emt 00:09:31]} g6 {[%clk 00:33:45]} {[%emt
00:01:14]} 24. Nd2 {[%clk 00:41:58]} {[%emt 00:02:18]} Bg5 {[%clk 00:31:43]}
{[%emt 00:02:32]} 25. Nf1 {[%clk 00:37:39]} {[%emt 00:04:49]} f6 {[%clk
00:29:48]} {[%emt 00:02:25]} 26. Bxg5 {[%clk 00:33:43]} {[%emt 00:04:26]} fxg5
{[%clk 00:30:16]} {[%emt 00:00:02]} 27. Rxf8+ {[%clk 00:34:08]} {[%emt
00:00:05]} Rxf8 {[%clk 00:29:38]} {[%emt 00:01:09]} 28. Rf3 {[%clk 00:34:31]}
{[%emt 00:00:06]} Rf4 {[%clk 00:25:04]} {[%emt 00:05:04]} 29. Rxf4 {[%clk
00:34:57]} {[%emt 00:00:04]} gxf4 {[%clk 00:25:32]} {[%emt 00:00:02]} 30. b3
{[%clk 00:24:03]} {[%emt 00:11:25]} Nb6 {[%clk 00:19:33]} {[%emt 00:06:29]} 31.
h3 {[%clk 00:20:00]} {[%emt 00:04:32]} Qc7 {[%clk 00:10:41]} {[%emt 00:09:22]}
32. Qf3 {[%clk 00:13:28]} {[%emt 00:07:02]} Qc5 {[%clk 00:05:31]} {[%emt
00:05:40]} 33. Nd2 {[%clk 00:13:55]} {[%emt 00:00:03]} Nxd5 {[%clk 00:04:46]}
{[%emt 00:01:15]} 34. Ne4 {[%clk 00:14:19]} {[%emt 00:00:05]} Qd4 {[%clk
00:05:03]} {[%emt 00:00:12]} 35. Kc1 {[%clk 00:14:45]} {[%emt 00:00:04]} a3
{[%clk 00:01:18]} {[%emt 00:04:16]} 36. c3 {[%clk 00:12:58]} {[%emt 00:02:17]}
Nxc3 {[%clk 00:01:24]} {[%emt 00:00:23]} 37. Nxc3 {[%clk 00:12:06]} {[%emt
00:01:22]} e4 {[%clk 00:01:53]} 38. Nxe4 {[%clk 00:12:30]} {[%emt 00:00:05]}
Qa1+ {[%clk 00:02:13]} {[%emt 00:00:11]} 39. Kc2 {[%clk 00:06:27]} {[%emt
00:06:33]} Qxa2+ {[%clk 00:02:40]} {[%emt 00:00:03]} 40. Kc3 {[%clk 00:06:54]}
{[%emt 00:00:03]} Qb2+ {[%clk 00:01:03]} {[%emt 00:02:07]} 41. Kb4 {[%clk
00:07:19]} {[%emt 00:00:04]} a2 {[%clk 00:29:11]} {[%emt 00:02:23]} 42. Nc3
{[%clk 00:33:30]} {[%emt 00:04:19]} a1=Q {[%emt 00:03:55]} 43. Qd5+ {[%clk
00:33:52]} {[%emt 00:00:07]} Kg7 {[%clk 00:23:02]} {[%emt 00:03:15]} 44. Qb7+
{[%clk 00:32:20]} {[%emt 00:02:02]} Kh6 {[%clk 00:15:54]} {[%emt 00:07:38]} 45.
g5+ {[%clk 00:32:38]} {[%emt 00:00:13]} Kxg5 {[%clk 00:15:55]} {[%emt
00:00:29]} 46. Qe7+ {[%clk 00:32:51]} {[%emt 00:00:17]} Kh6 {[%clk 00:15:40]}
{[%emt 00:00:46]} 47. Qh4+ {[%clk 00:33:15]} {[%emt 00:00:05]} Kg7 {[%clk
00:16:07]} {[%emt 00:00:03]} 48. Qe7+ {[%clk 00:33:40]} {[%emt 00:00:04]}
1/2-1/2

[Event "Masters Tournament (MTO)"]
[Site "Biel, Switzerland"]
[Date "2026.07.23"]
[Round "10.5"]
[White "Elmi, Saad Abobaker"]
[Black "Sasikiran, Krishnan"]
[Result "1-0"]
[TimeControl "100+30+30sec/move"]
[WhiteTitle "-"]
[BlackTitle "-"]
[WhiteFideId "1553259"]
[BlackFideId "5004985"]
[WhiteElo "2399"]
[BlackElo "2546"]

1. e4 {[%clk 01:40:57]} {[%emt 00:00:02]} e5 {[%clk 01:40:50]} {[%emt
00:00:11]} 2. Nc3 {[%clk 01:40:33]} {[%emt 00:00:53]} Nf6 {[%clk 01:40:23]}
{[%emt 00:00:57]} 3. d4 {[%clk 01:39:03]} {[%emt 00:02:00]} d6 {[%clk
01:38:44]} {[%emt 00:02:09]} 4. Nf3 {[%clk 01:38:37]} {[%emt 00:00:56]} Nbd7
{[%clk 01:38:25]} {[%emt 00:00:49]} 5. Rg1 {[%clk 01:36:12]} {[%emt 00:02:55]}
g6 {[%clk 01:25:55]} {[%emt 00:13:00]} 6. g4 {[%clk 01:29:58]} {[%emt
00:06:43]} Bg7 {[%clk 01:23:41]} {[%emt 00:02:45]} 7. g5 {[%clk 01:28:46]}
{[%emt 00:01:42]} Nh5 {[%clk 01:22:39]} {[%emt 00:01:33]} 8. Be3 {[%clk
01:28:54]} {[%emt 00:00:22]} O-O {[%clk 01:18:00]} {[%emt 00:05:08]} 9. Qd2
{[%clk 01:28:01]} {[%emt 00:01:21]} Nb6 {[%clk 01:04:45]} {[%emt 00:13:48]} 10.
a4 {[%clk 01:21:31]} {[%emt 00:06:59]} Be6 {[%clk 01:02:23]} {[%emt 00:02:52]}
11. b3 {[%clk 01:13:50]} {[%emt 00:08:11]} c6 {[%clk 00:58:35]} {[%emt
00:04:18]} 12. O-O-O {[%clk 01:06:17]} {[%emt 00:08:02]} Qc7 {[%clk 00:51:53]}
{[%emt 00:07:13]} 13. Kb1 {[%clk 01:05:00]} {[%emt 00:01:47]} Rfd8 {[%clk
00:49:49]} {[%emt 00:02:34]} 14. a5 {[%clk 00:59:37]} {[%emt 00:05:53]} Nc8
{[%clk 00:47:14]} {[%emt 00:03:04]} 15. dxe5 {[%clk 00:56:02]} {[%emt
00:04:05]} Qxa5 {[%clk 00:36:35]} {[%emt 00:11:09]} 16. Na4 {[%clk 00:55:50]}
{[%emt 00:00:41]} Qc7 {[%clk 00:36:19]} {[%emt 00:00:47]} 17. Nc5 {[%clk
00:55:25]} {[%emt 00:00:54]} Bd7 {[%clk 00:35:28]} {[%emt 00:01:21]} 18. exd6
{[%clk 00:34:24]} {[%emt 00:21:32]} Nxd6 {[%clk 00:35:20]} {[%emt 00:00:39]} 19.
e5 {[%clk 00:34:24]} {[%emt 00:00:30]} Ne4 {[%clk 00:27:48]} {[%emt 00:08:01]}
20. Nxe4 {[%clk 00:34:31]} {[%emt 00:00:22]} Bg4 {[%clk 00:28:15]} {[%emt
00:00:04]} 21. Qe2 {[%clk 00:30:04]} {[%emt 00:04:56]} Bxf3 {[%clk 00:23:29]}
{[%emt 00:05:16]} 22. Rxd8+ {[%clk 00:30:07]} {[%emt 00:00:27]} Rxd8 {[%clk
00:23:54]} {[%emt 00:00:06]} 23. Qxf3 {[%clk 00:30:27]} {[%emt 00:00:09]} Qxe5
{[%clk 00:24:13]} {[%emt 00:00:12]} 24. c3 {[%clk 00:30:24]} {[%emt 00:00:33]}
b5 {[%clk 00:20:45]} {[%emt 00:03:58]} 25. Bc1 {[%clk 00:23:45]} {[%emt
00:07:08]} Qd5 {[%clk 00:18:37]} {[%emt 00:02:38]} 26. Kc2 {[%clk 00:23:40]}
{[%emt 00:00:35]} Re8 {[%clk 00:16:18]} {[%emt 00:02:50]} 27. Bd3 {[%clk
00:19:40]} {[%emt 00:04:30]} a5 {[%clk 00:16:19]} {[%emt 00:00:29]} 28. Bb2
{[%clk 00:18:29]} {[%emt 00:01:40]} a4 {[%clk 00:10:39]} {[%emt 00:06:11]} 29.
bxa4 {[%clk 00:18:21]} {[%emt 00:00:38]} bxa4 {[%clk 00:11:05]} {[%emt
00:00:04]} 30. Nd2 {[%clk 00:16:15]} {[%emt 00:02:35]} Qa5 {[%clk 00:07:05]}
{[%emt 00:04:30]} 31. Bc4 {[%clk 00:15:52]} {[%emt 00:00:53]} Rb8 {[%clk
00:07:00]} {[%emt 00:00:35]} 32. Ba3 {[%clk 00:14:53]} {[%emt 00:01:29]} Kh8
{[%clk 00:05:28]} {[%emt 00:02:02]} 33. Ne4 {[%clk 00:13:47]} {[%emt 00:01:36]}
Be5 {[%clk 00:03:54]} {[%emt 00:02:05]} 34. Qxf7 {[%clk 00:12:13]} {[%emt
00:02:03]} Bxh2 {[%clk 00:03:16]} {[%emt 00:01:09]} 35. Bf8 {[%clk 00:11:58]}
{[%emt 00:00:44]} 1-0